bitfinex-derivatives/quotes_ETHF0:USTF0_20250112
["timestamp","ask_amount","ask_price","bid_price","bid_amount"]
[1736691858214,5.5196359,3276.3,3276.2,41.01378]
[1736691858416,5.5196359,3276.3,3276.2,40.8]
[1736691859422,5.5196359,3276.3,3276.2,41.01378]
[1736691860716,5.47898287,3276.3,3276.2,40.8]
[1736691862324,0.23432271,3276.3,3276.2,40.8]
[1736691863319,0.44809271,3276.3,3276.2,40.8]
[1736691863517,0.23432271,3276.3,3276.2,40.8]
[1736691864116,0.44809271,3276.3,3276.2,40.8]
[1736691864721,0.23432271,3276.3,3276.2,40.8]
[1736691865024,0.44809271,3276.3,3276.2,40.8]
[1736691865219,5.56505657,3276.3,3276.2,40.8]
[1736691865421,5.33073386,3276.3,3276.2,40.8]
[1736691866121,5.55872113,3276.3,3276.2,40.8]
[1736691866422,11.54363497,3276.3,3276.2,40.8]
[1736691867825,5.55872113,3276.3,3276.2,40.8]
[1736691869023,0.44175727,3276.3,3276.2,40.8]
[1736691870920,11.53946165,3276.3,3276.2,40.8]
[1736691871421,11.32569165,3276.3,3276.2,40.8]
[1736691871625,11.53946165,3276.3,3276.2,40.8]
[1736691872523,11.32569165,3276.3,3276.2,40.8]
[1736691873528,5.34495113,3276.3,3276.2,40.8]
[1736691874027,5.55872113,3276.3,3276.2,40.8]
[1736691874732,5.68482461,3276.3,3276.2,40.8]
[1736691876019,0.44175727,3276.3,3276.2,40.8]
[1736691876224,0.21378,3276.2,3276.0,0.21379]
[1736691876420,0.44175727,3276.3,3276.0,0.21379]
[1736691876621,0.21378,3276.2,3276.0,0.21379]
[1736691877225,0.21378,3276.2,3276.1,40.8]
[1736691878030,3.42158,3276.2,3276.1,40.8]
[1736691878327,14.52301514,3276.2,3276.1,40.8]
[1736691878720,0.2138,3275.8,3275.7,3.2078]
[1736691878926,0.21382,3275.5,3275.4,0.46423618]
[1736691879124,0.21383,3275.5,3275.4,40.8]
[1736691880132,5.33058448,3275.5,3275.4,40.8]
[1736691880629,5.11675448,3275.5,3275.4,41.01383]
[1736691881329,11.10143514,3275.5,3275.4,40.8]
[1736691881534,11.10143514,3275.5,3275.4,41.01383]
[1736691882834,5.24811561,3275.5,3275.4,40.8]
[1736691883223,5.46193561,3275.5,3275.4,40.8]
[1736691884334,0.4395052,3275.5,3275.4,40.8]
[1736691885935,6.42418586,3275.5,3275.4,40.8]
[1736691887344,5.40061292,3275.5,3275.4,40.8]
[1736691888835,0.4395052,3275.5,3275.4,40.8]
[1736691890239,12.58818404,3275.5,3275.4,40.8]
[1736691891642,0.21383,3275.3,3275.2,0.21384]
[1736691891846,0.21384,3275.2,3275.1,0.21384]
[1736691892645,3.2078,3275.4,3275.1,40.8]
[1736691892944,0.21383,3275.4,3275.2,0.21384]
[1736691893145,0.21384,3275.2,3275.1,41.01384]
[1736691893340,0.21384,3275.3,3275.2,0.21384]
[1736691893536,12.37436404,3275.5,3275.1,40.8]
[1736691893743,0.21384,3275.2,3275.1,40.8]
[1736691894132,0.21384,3275.2,3275.1,41.01385]
[1736691894343,0.21384,3275.2,3275.1,40.8]
[1736691895238,8.16890772,3275.3,3275.1,40.8]
[1736691895440,4.96110772,3275.2,3275.1,41.01385]
[1736691896847,5.25129117,3275.2,3275.1,41.01385]
[1736691897839,5.47615888,3275.2,3275.1,41.01385]
[1736691898045,5.01798358,3275.2,3275.1,41.01385]
[1736691899050,5.47615888,3275.2,3275.1,41.01385]
[1736691900051,0.68304301,3275.2,3275.1,41.01385]
[1736691901351,0.4581753,3275.2,3275.1,41.01385]
[1736691901553,3.59425701,3275.3,3275.2,0.21384]
[1736691902155,3.59425701,3275.3,3275.1,40.8]
[1736691902351,3.80809701,3275.3,3275.1,40.8]
[1736691902553,3.80809701,3275.3,3275.1,41.01384]
[1736691902747,3.59425701,3275.3,3275.1,41.01384]
[1736691903050,1.4127,3275.4,3275.2,0.21384]
[1736691903442,1.4127,3275.4,3275.1,40.8]
[1736691903642,1.4127,3275.4,3275.3,0.21383]
[1736691903950,1.4127,3275.4,3275.1,40.8]
[1736691904149,0.21384,3275.3,3275.1,40.8]
[1736691904350,3.59425701,3275.2,3275.1,40.8]
[1736691904553,3.80809701,3275.2,3275.1,40.8]
[1736691904851,3.59425701,3275.2,3275.1,40.8]
[1736691905049,3.80809701,3275.2,3275.1,40.8]
[1736691905451,0.21384,3275.2,3275.1,40.8]
[1736691906455,0.53466,3274.9,3273.9,7.96023083]
[1736691906650,0.2139,3274.4,3274.0,1.01893308]
[1736691906851,0.2139,3274.4,3274.1,40.8]
[1736691907060,3.2078,3274.7,3274.1,40.8]
[1736691907359,0.2139,3274.4,3274.1,40.8]
[1736691907958,3.2078,3274.7,3274.1,40.8]
[1736691908161,0.21391,3274.2,3274.1,40.8]
[1736691908855,3.59561621,3274.2,3274.1,40.8]
[1736691909048,3.59561621,3274.2,3274.1,41.01391]
[1736691909455,3.59561621,3274.2,3274.1,40.8]
[1736691909660,3.59561621,3274.2,3274.1,41.01391]
[1736691910060,3.59561621,3274.2,3274.1,40.8]
[1736691910259,4.24732621,3274.2,3274.1,40.8]
[1736691910454,5.19032621,3274.2,3274.1,40.8]
[1736691911754,2.0531051,3274.2,3274.1,40.8]
[1736691912861,5.28173411,3274.2,3273.2,3.2078]
[1736691913161,0.21395,3273.6,3273.2,3.42177]
[1736691913363,0.21396,3273.4,3273.3,40.8]
[1736691913559,1.62615,3273.5,3273.3,40.8]
[1736691913865,1.62615,3273.5,3273.2,3.2078]
[1736691914270,1.4122,3273.5,3273.2,3.2078]
[1736691914659,5.21797008,3273.5,3273.2,3.2078]
[1736691914961,4.53471008,3273.5,3273.3,0.21396]
[1736691915162,4.06101008,3273.5,3273.4,0.21396]
[1736691915362,3.59181008,3273.5,3273.4,0.21396]
[1736691916063,3.59181008,3273.5,3273.4,41.01396]
[1736691916259,4.04301008,3273.8,3273.4,40.8]
[1736691916464,4.04301008,3273.8,3273.6,0.21394]
[1736691917668,0.21395,3273.6,3273.2,0.21397]
[1736691917874,0.69485,3273.5,3273.1,0.21398]
[1736691918063,0.4714,3273.4,3273.1,0.21398]
[1736691918865,0.4714,3273.4,3273.2,0.21397]
[1736691919269,0.4714,3273.4,3273.3,0.21396]
[1736691919874,3.59181008,3273.6,3273.5,0.21395]
[1736691920170,3.59181008,3273.6,3273.1,3.2078]
[1736691920371,3.59181008,3273.6,3273.3,0.21396]
[1736691920681,0.21395,3273.6,3273.2,0.21397]
[1736691921072,0.21395,3273.6,3273.1,3.2078]
[1736691921267,0.21395,3273.6,3273.2,0.21397]
[1736691921569,0.21397,3273.2,3273.1,3.2078]
[1736691921769,0.21397,3273.3,3273.1,3.2078]
[1736691922069,1.19567,3273.2,3273.1,3.2078]
[1736691922274,1.64507,3273.2,3273.1,3.2078]
[1736691926177,5.40720217,3273.2,3272.3,3.2078]
[1736691926768,0.21401,3272.7,3272.4,0.21402]
[1736691926969,1.7007,3272.6,3272.4,0.21402]
[1736691927169,1.7007,3272.6,3272.3,3.42183]
[1736691927668,1.7007,3272.6,3272.3,3.2078]
[1736691927872,0.21402,3272.5,3272.3,3.2078]
[1736691928070,0.21402,3272.5,3272.2,0.21403]
[1736691928370,0.21403,3272.4,3272.1,0.21404]
[1736691928669,1.7007,3272.6,3272.0,0.5596]
[1736691928670,0.21402,3272.5,3272.2,0.21403]
[1736691928877,1.7007,3272.6,3272.4,0.21402]
[1736691929280,0.21402,3272.4,3272.1,0.21404]
[1736691929479,0.21402,3272.5,3272.0,0.5596]
[1736691929680,1.7007,3272.6,3271.9,4.01327532]
[1736691929876,1.7007,3272.6,3272.4,0.21402]
[1736691930081,1.7007,3272.6,3272.0,40.8]
[1736691930273,1.7007,3272.6,3272.4,0.21402]
[1736691930979,1.7007,3272.6,3272.3,0.21403]
[1736691931278,1.7007,3272.6,3272.4,0.21402]
[1736691931983,1.7007,3272.6,3272.0,40.8]
[1736691932278,1.91471,3272.6,3272.2,0.21403]
[1736691932475,0.21403,3272.3,3271.9,4.57287532]
[1736691932674,0.21403,3272.4,3272.0,0.21405]
[1736691932979,0.21402,3272.5,3272.2,0.21403]
[1736691933184,0.21402,3272.5,3271.9,4.57287532]
[1736691933580,1.7007,3272.6,3271.9,4.57287532]
[1736691933882,0.21402,3272.5,3272.2,0.21403]
[1736691934082,1.91471,3272.6,3272.2,0.21403]
[1736691934378,1.7007,3272.6,3272.2,0.21403]
[1736691934571,1.91471,3272.6,3272.2,0.21403]
[1736691934768,1.7007,3272.6,3271.9,4.01327532]
[1736691934970,0.21404,3272.2,3271.9,4.22732532]
[1736691935173,0.5482,3272.1,3271.9,4.22732532]
[1736691935376,0.5482,3272.1,3271.9,4.01327532]
[1736691935579,0.5482,3272.1,3271.9,4.22732532]
[1736691936183,0.5482,3272.1,3271.9,4.01327532]
[1736691936482,0.75545,3272.0,3271.9,4.01327532]
[1736691936980,0.75545,3272.0,3271.9,3.2078]
[1736691937281,0.75545,3272.0,3271.4,0.3462]
[1736691937580,0.75545,3272.0,3271.6,0.21407]
[1736691937781,0.5414,3272.0,3271.6,3.2078]
[1736691937979,0.5482,3272.1,3271.6,3.2078]
[1736691938181,0.5482,3272.1,3271.7,0.5395]
[1736691938375,0.5624,3272.2,3272.1,0.21404]
[1736691938576,0.5624,3272.2,3271.7,0.8859]
[1736691938772,3.2078,3272.4,3272.1,0.21404]
[1736691939079,3.59181008,3272.8,3272.2,0.5351]
[1736691939279,3.59181008,3272.9,3272.8,0.214]
[1736691940883,4.79415495,3273.1,3273.0,0.21398]
[1736691941084,4.79415495,3273.1,3273.0,3.42178]
[1736691941485,1.92535,3273.5,3273.1,0.21398]
[1736691941790,1.7114,3273.5,3273.2,0.21397]
[1736691941977,0.5787,3273.5,3273.4,0.21396]
[1736691942776,0.5787,3273.5,3273.0,3.2078]
[1736691942973,0.5787,3273.5,3273.3,0.21396]
[1736691943179,0.5787,3273.5,3273.0,3.2078]
[1736691943484,0.5787,3273.5,3273.4,0.21396]
[1736691944082,0.5624,3274.0,3273.0,3.2078]
[1736691944387,0.5626,3273.9,3273.5,0.21395]
[1736691944884,0.5626,3273.9,3273.6,0.21394]
[1736691945586,0.5626,3273.9,3273.0,3.2078]
[1736691945788,0.21394,3273.7,3273.3,0.21396]
[1736691945985,0.5626,3273.9,3273.2,0.21397]
[1736691946287,0.5626,3273.9,3273.0,3.2078]
[1736691946482,0.21396,3273.4,3273.0,3.42178]
[1736691946787,0.5636,3273.3,3273.0,3.42178]
[1736691947183,0.5536,3273.2,3273.0,3.42178]
[1736691947383,0.5536,3273.2,3273.1,0.21398]
[1736691948279,0.5536,3273.2,3273.0,3.42178]
[1736691948685,0.5536,3273.2,3273.0,3.2078]
[1736691948885,0.5536,3273.2,3273.1,0.21398]
[1736691949383,0.5536,3273.2,3273.0,3.42178]
[1736691949588,0.5536,3273.2,3273.0,0.21398]
[1736691949782,0.5536,3273.2,3272.6,3.45893244]
[1736691950085,0.5536,3273.2,3273.1,3.42178]
[1736691950388,2.38991617,3273.5,3273.4,0.21396]
[1736691950791,2.38991617,3273.5,3273.1,3.2078]
[1736691950990,2.38991617,3273.5,3272.7,3.2078]
[1736691951185,2.38991617,3273.5,3273.3,0.21396]
[1736691951383,2.38991617,3273.5,3273.4,0.21396]
[1736691951584,2.38991617,3273.6,3273.1,3.2078]
[1736691951790,2.38991617,3273.6,3273.2,0.21397]
[1736691951984,2.38991617,3273.6,3272.7,3.74281]
[1736691952190,2.38991617,3273.6,3273.3,0.21396]
[1736691952391,2.38991617,3273.5,3273.3,0.21396]
[1736691952592,2.38991617,3273.5,3272.7,3.2078]
[1736691952794,2.38991617,3273.5,3273.4,0.21396]
[1736691954887,1.1758,3273.7,3273.4,0.21396]
[1736691954888,5.96995495,3273.7,3273.4,0.21396]
[1736691955287,5.96995495,3273.7,3273.4,0.21395]
[1736691955494,5.96995495,3273.7,3273.5,0.21395]
[1736691955790,5.96995495,3273.7,3273.4,0.21396]
[1736691956287,0.68666565,3273.6,3273.3,0.21396]
[1736691957999,0.68666565,3273.6,3273.1,3.2078]
[1736691958000,0.45868687,3273.5,3273.1,3.2078]
[1736691958385,0.45868687,3273.5,3273.3,0.21396]
[1736691959095,5.25284182,3273.5,3273.3,0.21396]
[1736691959295,5.25284182,3273.5,3273.4,0.21396]
[1736691960899,5.38415495,3273.7,3273.6,0.21394]
[1736691961394,4.79415495,3273.7,3273.6,3.42174]
[1736691962191,5.25277649,3274.0,3273.9,0.21393]
[1736691963588,6.55359369,3274.1,3274.0,0.21392]
[1736691963589,2.95668278,3274.1,3274.0,0.21392]
[1736691963897,2.95668278,3274.1,3274.0,3.42172]
[1736691964199,2.39578278,3274.1,3274.0,3.42172]
[1736691964397,1.07107264,3274.1,3274.0,3.42172]
[1736691964597,0.5930972,3274.1,3274.0,8.42172]
[1736691964803,0.48067894,3274.1,3274.0,8.67038638]
[1736691964998,0.5567,3274.5,3274.0,3.45646638]
[1736691965307,0.5567,3274.5,3274.4,0.21389]
[1736691965895,0.5567,3274.5,3274.4,3.42169]
[1736691966096,4.79415495,3274.6,3274.4,3.2078]
[1736691966302,4.1506249,3274.6,3274.5,1.44089]
[1736691966597,7.74427112,3275.2,3274.5,1.44089]
[1736691966598,6.54939369,3275.2,3274.5,1.44089]
[1736691966804,6.54939369,3275.2,3275.0,0.21385]
[1736691967203,6.54939369,3275.2,3274.8,3.2078]
[1736691967403,6.54939369,3275.2,3275.0,0.21385]
[1736691967703,6.54939369,3275.2,3274.8,3.2078]
[1736691968105,6.54939369,3275.2,3275.0,0.21385]
[1736691968296,0.5567,3275.2,3275.0,0.21385]
[1736691968501,0.5567,3275.2,3274.8,3.2078]
[1736691968702,0.5567,3275.2,3275.1,0.21385]
[1736691971301,0.5567,3275.2,3274.8,3.2078]
[1736691971600,0.5567,3275.2,3275.0,0.21385]
[1736691971793,0.5567,3275.2,3275.1,0.21385]
[1736691972898,0.5567,3275.2,3274.8,3.2078]
[1736691973100,0.21385,3275.0,3274.5,0.21389]
[1736691973302,0.21385,3275.0,3274.6,0.21388]
[1736691973497,0.21385,3275.1,3274.6,0.21388]
[1736691973702,0.77054,3275.2,3274.8,0.21387]
[1736691973900,0.77054,3275.2,3274.7,0.21387]
[1736691974299,0.21385,3275.1,3274.7,0.21387]
[1736691974901,0.5567,3275.2,3274.7,0.21387]
[1736691975102,0.21385,3275.1,3274.6,0.21387]
[1736691975301,0.77055,3275.2,3274.4,3.2078]
[1736691975497,0.5567,3275.2,3274.4,3.2078]
[1736691975702,0.21385,3275.1,3274.7,0.21387]
[1736691975902,0.21385,3275.1,3274.6,0.21388]
[1736691976106,0.21385,3275.1,3274.4,3.2078]
[1736691976304,0.77054,3275.2,3274.5,0.21389]
[1736691976499,0.21385,3275.1,3274.7,0.21387]
[1736691977102,0.21385,3275.1,3274.6,0.21387]
[1736691977302,0.21385,3275.1,3274.7,0.21387]
[1736691977505,0.5567,3275.2,3274.7,0.21387]
[1736691977708,0.5567,3275.2,3274.4,3.2078]
[1736691978007,0.21385,3275.1,3274.7,0.21387]
[1736691978909,0.5567,3275.2,3274.5,0.21389]
[1736691979108,0.5567,3275.2,3274.8,0.21386]
[1736691979711,0.5567,3275.2,3274.5,40.8]
[1736691979905,0.5567,3275.2,3275.1,0.21385]
[1736691980111,0.5567,3275.2,3274.9,0.21386]
[1736691980312,0.21386,3275.0,3274.8,3.2078]
[1736691980603,0.5874,3274.9,3274.8,3.2078]
[1736691981808,0.5874,3274.9,3274.6,0.21388]
[1736691982011,0.5921,3274.8,3274.6,0.21388]
[1736691982802,0.5921,3274.8,3274.3,40.8]
[1736691983214,0.5921,3274.8,3274.4,0.21389]
[1736691983512,0.5921,3274.8,3274.3,40.8]
[1736691983911,0.80597,3274.8,3274.4,0.21389]
[1736691984310,0.21388,3274.7,3274.3,41.0139]
[1736691984515,0.6148,3274.6,3274.3,0.2139]
[1736691984711,0.6148,3274.6,3274.2,3.2078]
[1736691985015,3.2078,3274.5,3273.7,3.2078]
[1736691985316,0.21392,3274.1,3273.7,3.42174]
[1736691985610,0.21393,3273.8,3273.7,3.2078]
[1736691985808,1.8188,3274.0,3273.7,3.2078]
[1736691986312,1.8188,3274.0,3273.8,0.21393]
[1736691986518,1.8188,3274.0,3273.9,0.21393]
[1736691987318,2.05159206,3274.0,3273.7,3.2078]
[1736691987714,2.05159206,3274.0,3273.1,0.24703058]
[1736691987715,0.21393,3273.9,3273.3,3.42176]
[1736691988020,0.21394,3273.8,3273.3,3.42176]
[1736691988321,2.05159206,3274.0,3273.3,3.2078]
[1736691988617,0.21394,3273.7,3273.3,3.42176]
[1736691988816,0.21395,3273.6,3273.3,3.2078]
[1736691989016,2.05159206,3274.0,3273.3,3.42176]
[1736691989220,0.21394,3273.8,3273.3,3.42176]
[1736691989419,2.05159206,3274.0,3273.3,3.42176]
[1736691989616,0.21394,3273.7,3273.3,3.42176]
[1736691989820,0.21394,3273.7,3273.3,3.2078]
[1736691990021,0.21394,3273.7,3273.3,3.42176]
[1736691990716,2.05159206,3274.0,3273.3,3.2078]
[1736691990914,2.05159206,3274.0,3273.7,0.21394]
[1736691991116,2.05159206,3274.0,3273.3,3.2078]
[1736691991315,2.05159206,3274.0,3273.8,0.21393]
[1736691991521,2.05159206,3274.0,3273.4,0.5994]
[1736691991925,2.05159206,3274.0,3273.7,0.21394]
[1736691992616,2.05159206,3274.0,3273.4,0.5994]
[1736691993016,2.05159206,3274.0,3273.7,0.21394]
[1736691993216,2.05159206,3274.0,3273.4,0.5994]
[1736691993521,2.05159206,3274.0,3273.6,0.21394]
[1736691993714,2.05159206,3274.0,3273.4,0.5994]
[1736691993914,2.26551206,3274.0,3273.6,0.21394]
[1736691994626,2.05159206,3274.0,3273.7,0.21394]
[1736691994926,2.05159206,3274.0,3273.4,0.5994]
[1736691995318,2.05159206,3274.0,3273.7,0.21393]
[1736691995525,2.05159206,3274.0,3273.4,0.5994]
[1736691995726,2.26551206,3274.0,3273.6,0.21394]
[1736691996026,2.05159206,3274.0,3273.7,0.21394]
[1736691997529,2.05159206,3274.0,3273.8,0.21393]
[1736691997727,2.05159206,3274.0,3273.9,0.21393]
[1736691998132,2.05159206,3274.0,3273.8,0.21393]
[1736691998333,2.05159206,3274.0,3273.9,0.21393]
[1736691998628,1.43679206,3274.0,3273.9,0.21393]
[1736691998829,4.78624254,3274.3,3273.8,3.2078]
[1736691999024,4.78624254,3274.3,3274.2,0.21391]
[1736691999222,6.65914254,3274.4,3274.2,0.21391]
[1736691999626,6.65914254,3274.4,3274.1,0.21391]
[1736691999930,6.65914254,3274.4,3273.9,0.1233]
[1736691999931,6.65914254,3274.4,3274.2,0.2139]
[1736692000231,6.87303254,3274.4,3274.1,0.21391]
[1736692000524,2.08679,3274.4,3274.0,0.21391]
[1736692001234,2.0868,3274.4,3274.0,0.21392]
[1736692001732,1.8729,3274.4,3274.1,0.21391]
[1736692002232,5.46420507,3274.4,3274.1,0.21391]
[1736692002425,0.22751664,3274.3,3273.8,3.45499026]
[1736692002620,0.22751664,3274.3,3274.2,0.21391]
[1736692003933,5.46420507,3274.4,3274.2,0.21391]
[1736692004130,5.46420507,3274.4,3274.1,0.21391]
[1736692004831,5.46420507,3274.4,3274.2,0.2139]
[1736692005036,5.67809507,3274.4,3274.0,0.21391]
[1736692006034,0.2139,3274.3,3273.9,0.21392]
[1736692006435,5.46420507,3274.4,3273.9,0.21392]
[1736692006632,0.2139,3274.3,3273.9,0.21392]
[1736692006834,0.21391,3274.2,3273.9,0.21392]
[1736692007033,3.59130507,3274.1,3273.9,0.21392]
[1736692007228,3.59130507,3274.1,3274.0,0.21392]
[1736692009128,0.23415125,3274.1,3274.0,0.21392]
[1736692009330,0.23415125,3274.1,3274.0,5.21392]
[1736692009632,4.78624254,3274.4,3274.3,0.2139]
[1736692010224,4.78624254,3274.4,3274.3,0.3372]
[1736692010832,4.78624254,3275.0,3274.3,0.1233]
[1736692011033,4.78624254,3275.0,3274.9,0.21386]
[1736692012228,1.8311,3275.1,3274.6,3.2078]
[1736692012534,1.8311,3275.1,3275.0,0.21385]
[1736692016231,1.8311,3275.1,3274.9,0.21386]
[1736692016430,1.8311,3275.1,3274.6,3.2078]
[1736692016830,0.21386,3275.0,3274.6,3.42168]
[1736692017030,1.8311,3275.1,3274.6,3.2078]
[1736692017031,0.21386,3274.9,3274.6,3.2078]
[1736692017231,0.21386,3275.0,3274.6,3.2078]
[1736692017738,0.21385,3275.0,3274.6,3.42168]
[1736692017935,0.21385,3275.0,3274.6,3.2078]
[1736692018136,1.8311,3275.1,3274.6,3.2078]
[1736692018137,0.21386,3274.9,3274.6,3.2078]
[1736692018340,0.21388,3274.6,3274.2,4.96633083]
[1736692018634,1.8153,3274.5,3274.2,0.2139]
[1736692019037,1.8153,3274.5,3273.9,1.221]
[1736692019240,1.8153,3274.5,3274.3,0.2139]
[1736692020938,1.8153,3274.5,3273.9,1.221]
[1736692021237,1.8153,3274.5,3273.9,1.46941174]
[1736692021640,1.8153,3274.5,3274.0,0.21392]
[1736692021830,1.8153,3274.5,3273.9,1.46941174]
[1736692022341,1.8153,3274.5,3274.3,0.2139]
[1736692022835,1.8153,3274.5,3274.2,0.2139]
[1736692023031,1.8153,3274.5,3274.1,0.21391]
[1736692023337,1.8153,3274.5,3273.9,1.46941174]
[1736692023542,2.02919,3274.5,3274.0,0.21392]
[1736692023733,2.02919,3274.5,3274.0,0.21391]
[1736692023934,2.02919,3274.5,3273.9,1.221]
[1736692024135,2.02919,3274.5,3273.9,0.21392]
[1736692024136,3.2078,3274.3,3273.9,0.21392]
[1736692024742,3.2078,3274.3,3273.7,3.2078]
[1736692024941,3.2078,3274.3,3274.0,0.21392]
[1736692026134,3.2078,3274.3,3273.9,0.21392]
[1736692026333,3.2078,3274.3,3273.7,3.45829552]
[1736692026536,3.2078,3274.3,3274.0,0.21391]
[1736692026834,3.2078,3274.3,3273.9,0.21392]
[1736692027240,3.2078,3274.3,3274.0,0.21392]
[1736692027627,3.2078,3274.3,3274.1,0.21391]
[1736692028031,3.2078,3274.3,3273.7,3.45829552]
[1736692028241,3.2078,3274.3,3274.0,0.21391]
[1736692028439,3.2078,3274.3,3273.7,3.45829552]
[1736692028639,3.2078,3274.3,3274.1,0.21391]
[1736692031640,3.2078,3274.3,3273.7,3.45829552]
[1736692031840,3.2078,3274.3,3274.1,0.21391]
[1736692032037,3.2078,3274.3,3273.7,3.45829552]
[1736692032242,3.2078,3274.3,3274.1,0.21391]
[1736692032543,3.2078,3274.3,3273.8,0.21393]
[1736692032745,3.2078,3274.3,3274.0,0.21391]
[1736692033049,3.2078,3274.3,3274.1,0.21391]
[1736692033540,3.2078,3274.3,3273.7,3.45829552]
[1736692033941,3.2078,3274.3,3274.2,0.21391]
[1736692037143,5.01699447,3274.4,3273.8,0.53484]
[1736692037344,5.01699447,3274.4,3274.3,0.2139]
[1736692037545,0.23075193,3274.4,3274.3,0.2139]
[1736692038245,0.23075193,3274.4,3273.8,0.53484]
[1736692038445,5.01699447,3274.4,3273.8,0.53484]
[1736692038847,5.01699447,3274.4,3274.2,0.2139]
[1736692039149,5.01699447,3274.4,3274.3,0.2139]
[1736692039352,5.01699447,3274.4,3273.8,0.53484]
[1736692039648,5.01699447,3274.4,3274.3,0.2139]
[1736692043052,4.78624254,3274.4,3274.3,0.2139]
[1736692043243,6.60154254,3274.5,3274.4,0.21389]
[1736692044447,6.60154254,3274.5,3274.0,1.1858]
[1736692044448,4.78624254,3274.6,3274.2,1.221]
[1736692044744,4.78624254,3274.6,3274.5,0.21389]
[1736692044949,4.78624254,3274.6,3274.5,41.01389]
[1736692045751,5.40654254,3274.7,3274.6,0.21388]
[1736692046950,0.6203,3274.7,3274.6,0.21388]
[1736692047343,0.6203,3274.7,3274.2,1.221]
[1736692047544,0.6203,3274.7,3274.1,4.75243083]
[1736692047746,0.21391,3274.2,3274.1,4.75243083]
[1736692047955,5.40654254,3274.7,3273.9,4.75243083]
[1736692048255,1.2946,3274.1,3273.9,4.75243083]
[1736692048453,0.6761,3274.0,3273.9,4.75243083]
[1736692049256,5.46234254,3274.0,3273.8,0.21393]
[1736692049749,5.46234254,3274.0,3273.7,3.42174]
[1736692050846,5.46234254,3274.0,3273.7,3.2078]
[1736692051051,5.46234254,3274.0,3273.8,0.21393]
[1736692051254,5.46234254,3274.0,3273.7,3.2078]
[1736692051453,5.46234254,3274.0,3273.9,0.21393]
[1736692052665,0.6761,3274.0,3273.9,0.21393]
[1736692054054,0.6761,3274.0,3273.4,4.75243083]
[1736692054260,0.21393,3273.8,3273.4,4.75243083]
[1736692054455,0.21394,3273.7,3273.4,4.75243083]
[1736692054858,3.2078,3273.9,3273.4,4.75243083]
[1736692055062,0.21395,3273.6,3273.4,4.75243083]
[1736692055361,1.2523,3273.5,3273.4,4.75243083]
[1736692055568,1.9237,3273.5,3273.4,4.75243083]
[1736692055864,1.9237,3273.5,3273.0,3.42178]
[1736692055865,2.13766,3273.5,3273.0,3.42178]
[1736692056065,1.9237,3273.5,3273.1,0.21398]
[1736692056361,2.13766,3273.5,3273.0,3.42178]
[1736692056562,1.9237,3273.5,3273.0,3.2078]
[1736692056966,1.9237,3273.5,3273.1,0.21398]
[1736692057264,1.9237,3273.5,3273.0,3.2078]
[1736692057761,1.9237,3273.5,3273.4,0.21396]
[1736692057961,1.9237,3273.5,3273.3,0.21396]
[1736692058264,1.9237,3273.5,3273.4,0.21396]
[1736692060360,1.9237,3273.5,3273.4,3.42176]
[1736692061357,1.9237,3273.5,3273.0,3.2078]
[1736692061666,1.9237,3273.5,3273.2,0.21397]
[1736692062763,1.9237,3273.5,3273.0,3.2078]
[1736692062960,1.9237,3273.5,3273.4,0.21396]
[1736692064965,1.3025,3273.5,3273.4,0.21396]
[1736692065159,4.78624254,3273.6,3273.5,0.21395]
[1736692065666,0.629,3273.8,3273.6,0.21394]
[1736692065667,4.78624254,3273.7,3273.6,0.21394]
[1736692066863,5.93664356,3274.0,3273.9,0.21393]
[1736692067169,4.78624254,3274.0,3273.9,0.21393]
[1736692067664,4.78624254,3274.0,3273.9,41.01393]
[1736692068071,4.2890721,3274.3,3274.2,0.21391]
[1736692068373,4.2890721,3274.3,3274.2,4.63771]
[1736692068660,3.81895583,3274.3,3274.2,4.63771]
[1736692068867,2.63375583,3274.3,3274.2,4.63771]
[1736692069163,0.20925583,3274.3,3274.2,4.63771]
[1736692069370,10.51279369,3275.2,3274.2,4.4238]
[1736692069668,10.51279369,3275.2,3274.9,0.21386]
[1736692070159,0.662,3275.1,3274.9,0.21386]
[1736692070670,0.662,3275.1,3275.0,0.21385]
[1736692070868,0.662,3275.1,3274.9,0.21386]
[1736692071864,0.662,3275.1,3274.4,0.2705]
[1736692072060,0.662,3275.1,3274.5,0.2147]
[1736692072261,0.662,3275.1,3274.9,0.21386]
[1736692072656,3.59615502,3275.0,3274.9,0.21386]
[1736692073867,4.90845502,3275.2,3274.7,3.2078]
[1736692074067,4.90845502,3275.2,3275.1,0.21385]
[1736692075470,1.3123,3275.2,3275.1,0.21385]
[1736692075671,0.6495,3275.2,3275.1,0.21385]
[1736692080875,0.6495,3275.2,3275.0,0.21385]
[1736692081067,0.6558,3275.1,3275.0,0.21385]
[1736692083675,0.6558,3275.1,3274.9,3.42166]
[1736692083875,0.6558,3275.1,3274.9,3.2078]
[1736692084168,0.6558,3275.1,3274.5,3.45827716]
[1736692084368,0.6558,3275.1,3274.5,3.2078]
[1736692084572,0.6558,3275.1,3274.2,1.4339]
[1736692084573,3.2078,3274.8,3274.2,1.4339]
[1736692084767,0.6803,3274.7,3274.2,1.4339]
[1736692085174,0.6803,3274.7,3274.2,1.22]
[1736692085673,0.6863,3274.6,3274.5,0.21389]
[1736692085874,0.6863,3274.6,3274.4,0.21389]
[1736692086274,0.6863,3274.6,3274.2,1.22]
[1736692086570,3.59615502,3274.7,3274.6,0.21388]
[1736692087175,1.3758,3275.1,3274.7,0.21387]
[1736692087176,2.39178457,3274.8,3274.7,0.21387]
[1736692088374,1.3758,3275.1,3274.5,3.2078]
[1736692088573,1.3758,3275.1,3275.0,0.21385]
[1736692090273,3.03818457,3275.4,3274.9,1.22]